Cogmind - Beta 9.4 @@@ ROGUE MODE // 2020.01.21 @ 00:54:13 // Winter2019/RPGLIKE Player: PyroDawn Result: Destroyed by DAS Turret with DAS Cannon Performance ------------- Evolutions (0) 0 Regions Visited (3) 600 Robots Destroyed (50) 250 Value Destroyed (902) 902 Prototype IDs (7) 140 Alien Tech Used (0) 0 Bonus (320) 320 TOTAL SCORE: 2212 Bonus ------- High Alert Combat Kills 32 Aligned with FarCom 300 Friendly Fire -12 Cogmind --------- Core Integrity 0/600 Matter 231/300 Energy 156/160 System Corruption 0% Temperature Cool (4) Movement Flying (37) Location -10/Exiles Parts ------- > --- POWER (1) -------- Light Nuclear Core > --- PROPULSION (2) --- Flight Unit Flight Unit > --- UTILITY (3) ------ Experimental Sensor Array Improved Signal Interpreter Hacking Suite > --- WEAPON (3) ------- Shock Bomb Launcher Rocket Launcher Mace > --- INVENTORY (1) ---- Protomatter-13 Peak State ------------ > --- POWER ------------ Light Nuclear Core > --- PROPULSION ------- Flight Unit Flight Unit > --- UTILITY ---------- Improved Signal Interpreter Hacking Suite PSU Rigger > --- WEAPON ----------- Shock Bomb Launcher Rocket Launcher Mace > --- INVENTORY -------- (None) [Rating: 25] Favorites ----------- Power Light Ion Engine Engine Light Ion Engine Power Core Light Nuclear Core Propulsion Flight Unit Flight Unit Flight Unit Utility Hacking Suite Device Experimental Sensor Array Processor Improved Signal Interpreter Hackware Hacking Suite Weapon Mace Ballistic Gun Light Assault Rifle Launcher Rocket Launcher Impact Weapon Mace Build | -11 -10 -10 -10 ------- Run | Scr Mat Min Exi Slots Evolved 5 | . 3 2 . Power . | . . . . Propulsion 1 | . 1 . . Utility 2 | . 1 1 . Weapon 2 | . 1 1 . Parts Attached 29 | 2 17 7 3 Power 5 | 1 3 1 . Engine 4 | 1 3 . . Core 1 | . . 1 . Reactor . | . . . . Propulsion 6 | . 6 . . Treads . | . . . . Leg . | . . . . Wheel . | . . . . Hover . | . . . . Flight 6 | . 6 . . Utility 6 | . 2 1 3 Device 3 | . . 1 2 Storage . | . . . . Processor 2 | . 1 . 1 Hackware 1 | . 1 . . Protection . | . . . . Artifact . | . . . . Weapon 12 | 1 6 5 . Energy Gun . | . . . . Energy Cannon . | . . . . Ballistic Gun 5 | 1 4 . . Ballistic Cannon . | . . . . Launcher 5 | . 1 4 . Special Weapon . | . . . . Impact Weapon 2 | . 1 1 . Slashing Weapon . | . . . . Piercing Weapon . | . . . . Special Melee Weapon . | . . . . Unidentified Prototypes 4 | . . 1 3 Parts Lost . | . . . . Power . | . . . . Propulsion . | . . . . Utility . | . . . . Weapon . | . . . . Highest Loss Streak . | . . . . Average Slot Usage (%) 93 | . 87 98 100 Engine 10 | . 19 1 . Core 5 | . . 11 11 Flight 24 | . 24 25 22 Device 2 | . . 3 10 Processor 6 | . 1 12 11 Hackware 14 | . 17 12 11 Ballistic Gun 12 | . 23 . . Launcher 9 | . . 16 22 Impact Weapon 6 | . 1 12 11 Naked Turns 1 | . 1 . . Heaviest Build 18 | 1 8 18 18 Greatest Support 18 | 3 13 18 18 Greatest Overweight (x) . | . . . . Average Overweight (x) . | . . . . Largest Inventory Capacity 1 | . 1 1 1 Average Capacity . | . . 1 1 Most Carried 1 | . 1 1 1 Average Carried . | . . . . Final Capacity 1 | . 1 1 1 Final Carried 1 | . 1 . 1 Class Distribution -------------------- 100% | Hacker-Mutant Dominant Class ---------------- Hacker-Mutant | -10/Materials Hacker-Mutant | -10/Mines Hacker-Mutant | -10/Exiles Resources | -11 -10 -10 -10 ----------- Run | Scr Mat Min Exi Matter Collected 780 | 220 388 172 . Remotely . | . . . . Salvage Created 1009 | . 667 308 34 Parts 79 | . 56 23 . Haulers Intercepted 2 | . 2 . . Recyclers Shooed 1 | . . 1 . Parts Field Recycled . | . . . . Retrieved Matter . | . . . . Parts Self-Destructed . | . . . . Prevented . | . . . . Kills | -11 -10 -10 -10 ------- Run | Scr Mat Min Exi Combat Hostiles Destroyed 40 | . 24 14 2 Melee 3 | . . 3 . Guns 23 | . 23 . . AOE 12 | . . 10 2 Classes Destroyed 8 | . 5 2 1 Builder 2 | . . 2 . Hauler 2 | . 2 . . Recycler 2 | . . 2 . Operator 1 | . 1 . . Watcher 3 | . 3 . . Swarmer 25 | . 12 12 1 Grunt 14 | . 12 2 . Assembled 1 | . . . 1 Best Kill Streak 6 | . 4 6 2 Combat Bots Only 6 | . 4 6 2 Max Kills in Single Turn 2 | . 1 2 1 Gunslinging . | . . . . Exploded 2 | . . 2 1 Melee 1 | . . 1 . Uniques/NPCs Destroyed . | . . . . Combat | -11 -10 -10 -10 -------- Run | Scr Mat Min Exi Damage Taken 1854 | . 754 307 793 Core 1544 | . 633 254 657 Absorbed by Shields . | . . . . Redirected to Core 1031 | . 367 152 512 Core Remaining (%) 100 | 100 . . . Volleys Fired 202 | . 186 13 3 Largest 1 | . 1 1 1 Hottest 36 | . 20 36 36 Shots Fired 202 | . 186 13 3 Gun 186 | . 186 . . Cannon . | . . . . Launcher 16 | . . 13 3 Special . | . . . . Kinetic 186 | . 186 . . Thermal . | . . . . Explosive 9 | . . 9 . Electromagnetic 7 | . . 4 3 Robot Hit Streak 15 | . 15 5 1 Robot Miss Streak 4 | . 4 3 1 Penetration Max . | . . . . Secondary Targets . | . . . . Shots Hit Robots 146 | . 126 19 1 Core Hits 72 | . 53 16 3 Critical Hits 4 | . 4 . . Critical Kills 1 | . 1 . . Critical Parts Destroyed 3 | . 3 . . Melee Attacks 26 | . 1 25 . Impact 26 | . 1 25 . Slashing . | . . . . Piercing . | . . . . Sneak Attacks 4 | . 1 3 . Combat Hostiles 1 | . 1 . . Follow-up Attacks . | . . . . Damage Inflicted 2421 | . 1241 1137 43 Guns 1143 | . 1143 . . Cannons . | . . . . Explosions 756 | . . 713 43 Melee 522 | . 98 424 . Ramming . | . . . . Kinetic 1143 | . 1143 . . Thermal . | . . . . Explosive 652 | . . 652 . Electromagnetic 104 | . . 61 43 Impact 522 | . 98 424 . Slashing . | . . . . Piercing . | . . . . Highest Corruption . | . . . . Average Corruption . | . . . . Corruption Purged . | . . . . Overload Shots . | . . . . Overflow Damage 214 | . 58 156 . Projectiles . | . . . . Explosions 23 | . . 23 . Melee 191 | . 58 133 . Knockbacks 2 | . . 2 . Impact 1 | . . 1 . Kinetic . | . . . . Secondary 1 | . . 1 . Self-Inflicted Damage 23 | . . 23 . Shots 3 | . . 3 . Rammed . | . . . . Targets Rammed . | . . . . Kicked . | . . . . Crushed . | . . . . Highest Temperature 12 | . 11 12 8 Average Temperature 2 | . 2 4 6 Received Heat Transfer 282 | . 240 42 . Siege Activations . | . . . . Robots Corrupted . | . . . . Combat Hostiles . | . . . . Parts Fried 12 | . 2 10 . Impact Corruptions 9 | . 1 8 . Robots Melted . | . . . . Combat Hostiles . | . . . . Parts Melted . | . . . . Heat Transferred . | . . . . Parts Sabotaged . | . . . . Parts Stolen . | . . . . Parts Stripped . | . . . . Power Chain Reactions 1 | . . 1 . Missiles Intercepted . | . . . . Alert | -11 -10 -10 -10 ------- Run | Scr Mat Min Exi Peak Influence 560 | . 490 560 . Average Influence 278 | . 293 259 . Maximum Alert Level 2 | . 2 2 . Low Security (%) 30 | 100 26 34 . Level 1 45 | . 41 54 . Level 2 23 | . 31 11 . Level 3 . | . . . . Level 4 . | . . . . Level 5 . | . . . . High Security . | . . . . Max Security . | . . . . Squads Dispatched 5 | . 5 . . Investigation 4 | . 4 . . Extermination . | . . . . Reinforcement 1 | . 1 . . Assault . | . . . . Garrison . | . . . . Intercept . | . . . . Construction Impeded . | . . . . Haulers Reinforced . | . . . . Stealth | -11 -10 -10 -10 --------- Run | Scr Mat Min Exi Distress Signals 1 | . 1 . . Communications Jammed . | . . . . Distress Signals . | . . . . Times Spotted 80 | . 42 13 25 Peak Tracking Total 10 | . 9 3 10 Tactical Retreats 11 | . 6 1 4 Traps | -11 -10 -10 -10 ------- Run | Scr Mat Min Exi Traps Triggered 3 | . 3 . . Indirectly . | . . . . Trap Hack Attempts . | . . . . Triggered . | . . . . Disarmed . | . . . . Reprogrammed . | . . . . Reused . | . . . . Traps Extracted . | . . . . Installed . | . . . . Triggered . | . . . . Exploded 2 | . . . 2 Machines | -11 -10 -10 -10 ---------- Run | Scr Mat Min Exi Machines Disabled 9 | . . 6 3 Max in Single Turn 2 | . . 2 2 Machines Sabotaged . | . . . . Garrisons Compromised . | . . . . Overloaded Fab Kills . | . . . . Fab Network Shutdowns . | . . . . Hacking | -11 -10 -10 -10 --------- Run | Scr Mat Min Exi Machines Accessed 15 | . 9 2 4 Terminals 7 | . 6 1 . Fabricators . | . . . . Repair Stations 1 | . 1 . . Recycling Units 2 | . 2 . . Scanalyzers . | . . . . Garrison Access . | . . . . Total Hacks 90 | . 35 7 48 Successful 84 | . 30 6 48 Failed 6 | . 5 1 . Catastrophic . | . . . . Database Lockouts . | . . . . Manual 30 | . 25 4 1 Terminals 30 | . 24 6 . Fabricators . | . . . . Repair Stations 1 | . 1 . . Recycling Units 10 | . 10 . . Scanalyzers . | . . . . Garrison Access . | . . . . Terminal Hacks 60 | . 7 5 48 Record 49 | . . 1 48 Prototype ID Bank 2 | . 2 . . Open Door 1 | . . 1 . Branch Access Points 1 | . 1 . . Terminal Index 1 | . 1 . . Alert Level 1 | . . 1 . Unreport Threat 2 | . . 2 . Hauler Manifests 2 | . 2 . . Registered Components 1 | . 1 . . Fabricator Hacks . | . . . . Repair Station Hacks . | . . . . Recycling Unit Hacks 3 | . 3 . . Report Inventory 1 | . 1 . . Retrieve Components 2 | . 2 . . Scanalyzer . | . . . . Garrison Access Hacks . | . . . . Unauthorized Hacks 43 | . 41 2 . Terminals 14 | . 13 1 . Track 3 | . 3 . . Assimilate 1 | . 1 . . Botnet 7 | . 6 1 . Disrupt 1 | . 1 . . Operators 2 | . 2 . . Fabricators . | . . . . Repair Stations 1 | . 1 . . Mechanics 1 | . 1 . . Recycling Units 6 | . 6 . . Monitor 1 | . 1 . . Reject 1 | . 1 . . Recyclers 1 | . 1 . . Mask 1 | . 1 . . Tunnel 2 | . 2 . . Scanalyzers . | . . . . Garrison Access . | . . . . Data Cores Recovered . | . . . . Used . | . . . . Hacking Detections 9 | . 8 1 . Full Trace Events . | . . . . Feedback Events . | . . . . Feedback Blocked . | . . . . Robot Schematics Acquired . | . . . . Robots Built . | . . . . Matter . | . . . . Time . | . . . . Total Robot Build Rating . | . . . . Part Schematics Acquired . | . . . . Parts Built . | . . . . Matter . | . . . . Time . | . . . . Total Part Build Rating . | . . . . Parts Repaired . | . . . . Time . | . . . . Parts Recycled . | . . . . Recycled Matter . | . . . . Retrieved Matter . | . . . . Retrieved Components 10 | . 10 . . Parts Scanalyzed . | . . . . Part Schematics Acquired . | . . . . Parts Damaged . | . . . . Bothacking | -11 -10 -10 -10 ------------ Run | Scr Mat Min Exi Used RIF Installer . | . . . . Robots Hacked . | . . . . Non-combat . | . . . . Combat . | . . . . Robot Hacks Applied . | . . . . Relay Couplers Released . | . . . . Robots Rewired . | . . . . Allies Hacked . | . . . . Hacks Repelled . | . . . . Allies | -11 -10 -10 -10 -------- Run | Scr Mat Min Exi Total Allies 3 | . . 3 . Largest Group 3 | . . 3 3 Highest-Rated Group 40 | . . 40 40 Highest-Rated Ally 16 | . . 16 16 Total Orders . | . . . . Ally Attacks 8 | . . . 8 Total Damage 46 | . . . 46 Kills . | . . . . Allies Corrupted . | . . . . Allies Melted . | . . . . Intel | -11 -10 -10 -10 ------- Run | Scr Mat Min Exi Robot Analysis Total . | . . . . Derelict Logs Recovered 3 | . . 3 . Drone Launches . | . . . . Drone Recoveries . | . . . . Exploration | -11 -10 -10 -10 ------------- Run | Scr Mat Min Exi Turns Passed 1947 | 18 1004 570 355 Spaces Moved 3178 | 29 1344 982 823 Core 52 | 29 23 . . Treads . | . . . . Legs . | . . . . Wheels . | . . . . Hover . | . . . . Flight 3126 | . 1321 982 823 Fastest Speed 37 | 50 37 37 37 Average Speed 38 | 50 39 37 37 Slowest Speed 50 | 50 50 37 37 Overloaded Moves . | . . . . Propulsion Burnouts . | . . . . Robots Hopped 31 | . 24 7 . Cave-ins Triggered . | . . . . Time Travels 1 | . . . 1 Exploration Rate (%) 73 | 3 99 99 93 Regions Visited 3 Branch Regions 2 Pre-discovered Areas 4 | . 2 1 1 Known Exits Taken 2 | . 1 1 . Unknown Exits Taken 1 | 1 . . . Scrap Searched 1 | . . 1 . Spaces Dug 8 | . . 8 . Terrain Destroyed 60 | . . 60 . Melee . | . . . . Projectile . | . . . . AOE 60 | . . 60 . Actions | -11 -10 -10 -10 --------- Run | Scr Mat Min Exi Total 3668 | 31 1634 1132 871 Wait 194 | . 70 92 32 Move 3114 | 28 1296 967 823 Hop 30 | . 23 7 . Pick Up 5 | . 1 2 2 Fast Attach 18 | 2 10 3 3 Attach 2 | . . 2 . Detach 1 | . . 1 . Swap 9 | . 7 2 . Drop 19 | 1 9 5 4 Fire 202 | . 186 13 3 Melee 26 | . 1 25 . Ram . | . . . . Kick . | . . . . Crush . | . . . . Escape Stasis . | . . . . Rewire . | . . . . Trap . | . . . . Miscellaneous 48 | . 31 13 4 Route ------- -11/Scrapyard -10/Materials (discovered 5 exits: *Mat x3 / *Min x2) -10/Mines (discovered 3 exits: *Mat x2 / *Exi) -10/Exiles (discovered 2 exits: *Min x2) History --------- Turn | Location | Event 12 | -11/Scrapyard | Discovered new exit (range 15) 19 | -11/Scrapyard | Entered Materials 83 | -10/Materials | Identified exit to Mines 158 | -10/Materials | Discovered new exit (range 14) 328 | -10/Materials | Build established: Hacker-Mutant 511 | -10/Materials | Reached level 2 559 | -10/Materials | Core integrity fell below 50% 682 | -10/Materials | Discovered new exit (range 3) 860 | -10/Materials | Reached level 3 878 | -10/Materials | Discovered new exit (range 14) 943 | -10/Materials | Upgraded with Propulsion slot (x1) 943 | -10/Materials | Upgraded with Utility slot (x1) 943 | -10/Materials | Upgraded with Weapon slot (x1) 1023 | -10/Materials | Entered Mines 1048 | -10/Mines | Discovered new exit (range 3) 1064 | -10/Mines | Identified exit to Materials 1144 | -10/Mines | Received a Rocket Launcher from a helpful Derelict 1149 | -10/Mines | Reached level 4 1180 | -10/Mines | Learned 2 Materials zone layouts 1247 | -10/Mines | Learned location of Zion (-6) 1250 | -10/Mines | Deemed a non-threat by the Exiles lab entrance 1250 | -10/Mines | Discovered new exit (range 5) 1251 | -10/Mines | Identified exit to Exiles 1298 | -10/Mines | Discovered exit to Materials (range 9) 1316 | -10/Mines | Assisted by bots powering up and referring to "LRC-V3" 1352 | -10/Mines | Met a Derelict who couldn't figure out how to use a Trap Extractor 1356 | -10/Mines | Upgraded with Weapon slot (x1) 1422 | -10/Mines | Reached level 5 1429 | -10/Mines | Found a damaged Exp. Sensor Array with a note attached 1431 | -10/Mines | Upgraded with Utility slot (x1) 1431 | -10/Mines | Found Prototype Device 1431 | -10/Mines | Identified Exp. Sensor Array 1593 | -10/Mines | Entered Exiles 1593 | -10/Exiles | Accompanied by 3 allies 1599 | -10/Exiles | Discovered new exit (range 15) 1603 | -10/Exiles | Identified exit to Mines 1613 | -10/Exiles | Met 8R-AWN 1619 | -10/Exiles | Met EX-HEX 1633 | -10/Exiles | Met EX-DEC 1654 | -10/Exiles | Discovered exit to Mines (range 14) 1684 | -10/Exiles | Visited The Gauntlet 1739 | -10/Exiles | Met EX-BIN 1773 | -10/Exiles | Aligned with FarCom system 1773 | -10/Exiles | Given EX-Vault access code 1782 | -10/Exiles | Opened EX-Vault 1783 | -10/Exiles | Found Prototype Device 1783 | -10/Exiles | Identified PSU Rigger 1787 | -10/Exiles | Found Prototype Device 1787 | -10/Exiles | Identified Chronowheel 1787 | -10/Exiles | Activated Chronowheel 1787 | -10/Exiles | Spacetime reconverged on an earlier point 1788 | -10/Exiles | Found Prototype Processor 1788 | -10/Exiles | Identified 0b10 Alert Chip 1799 | -10/Exiles | Warned to stay clear of 0b10 Research branches 1804 | -10/Exiles | Exiles lab attacked by MAIN.C 1857 | -10/Exiles | Attacked by the Exiles 1929 | -10/Exiles | Core integrity fell below 20% 1948 | -10/Exiles | Destroyed by DAS Turret with DAS Cannon Last Messages --------------- 01856_ Assembled Analyzer disabled. 01857_ EXILES: Additional hostile detected within perimeter. 01859_ HV Slug penetrates Wall. 01859_ Machine disabled. 01859_ HV Slug penetrates Machine. 01866_ EX-BIN: "I just want to science!" 01875_ as-05226 destroyed. 01875_ Machine disabled. 01880_ Penetrated by Slug. 01885_ EX-HEX destroyed. 01885_ Knocked back. 01925_ Acquired Protomatter-45. 01926_ Knocked back. 01929_ Dropped Protomatter-45. 01933_ Acquired Protomatter-13. 01938_ HV Slug penetrates Machine. 01938_ HV Slug penetrates EX-Message Board. 01938_ Penetrated by HV Slug. 01938_ HV Slug penetrates Wall. 01946_ Knocked back. Map ----- +----------------------------------------------------+ | ????????????????????????????????????????????????? | | ????????????????????????????????????????????????? | | ????????????????????????????????????????????????? | | ????????????????????????????????????????????????? | | ????????????????????????????????????????????????? | | ????????????????????????????????????????????????? | | ????????????????????????????????????????????????? | | ????????????????????????????????????????????????? | | ????????????????????????????????????????????????? | | ????????????????????????????????????????????????? | | ????????????????????????????????????????????????? | | ????????????????????????????????????????????????? | | ????????????????????????????????????????????????? | | ????????????????????????????????????????????????? | | ????????????????#####???????????????????????????? | | ???????????????## ##??????????????????????????? | | ???????????????# #??????????????????????????? | | ???????????????# > #??????????????????????????? | | ???????????????# ###????????????????????????? | | ???????????????# #????????????????????????? | | ???????????????# ##????????????????????????? | | ???????????????## #?????????????????????????? | | ????????????????# ##????????????????????????? | | ????????????????## #????????????#######?????? | | ?????????????????# #######??????#!!! "#?????? | | ?????????????????# @ #""##?????# "#?????? | | ?????????????????## #?????# "#?????? | | ??????????????????##" ##???## ""#?????? | | ??????????????????#"" #####" ""#?????? | | ??????????????????#### ##" ""#?????? | | ?????????????????????## #"" ###?????? | | ??????????????????????#"## #???????? | | ??????????????????????####### ##??????? | | ????????????????????????????### t #??????? | | ??????????????????????########" ###????? | | ??????????????????????# !!""""" ##???? | | ??????????????????????#! "###"" ##### | | ??????????????????????#! "#?##" """ | | ??????????????????????#! ##??#" | | ??????????????????????# !""""""###???#"# | | ??????????????????????##########?????#### | | ????????????????????????????????????????### | | ??????????????????????????????????????????### | | ????????????????????????????????????????????## | | ?????????????????????????????????????????????## | | ??????????????????????????????????????????????##" | | ???????????????????????????????????????????????#" | | ??????????????????????????????????????????????##" | | ??????????????????????????????????????????????#"" | | ?????????????????????????????????????????????##"" | +----------------------------------------------------+ Best States ------------- Heat Dissipation 25 Energy Generation 14 Energy Capacity 160 Matter Stores 300 Matter Capacity 300 Sight Range 16 Robot Scan Range 38 Terrain Scan Density 10 Evasion (%) 62 Offensive Hacking 35 Defensive Hacking 10 Item Schematics ----------------- None Robot Schematics ------------------ None Fabricated ------------ Nothing Alien Tech Used ----------------- None Achievements -------------- None Challenges ------------ None RPGLIKE | -11 -10 -10 -10 --------- Run | Scr Mat Min Exi Levels Raised 4 | . 2 2 . XP Earned 9369 | 3000 3387 2659 323 XP Spent 9000 | 3000 2750 3250 . Upgrades 21 | 5 7 9 . Propulsion Slot 1 | . 1 . . Utility Slot 2 | . 1 1 . Weapon Slot 2 | . 1 1 . Mass Support 2 | . 1 1 . Inventory Capacity 1 | . 1 . . Sensor Range 4 | . . 4 . Ranged Accuracy 2 | . 2 . . Hack Attack % 5 | 5 . . . Hack Defense % 2 | . . 2 . Protomatter Created 363 | . 291 72 . Integrity Restored 969 | . 643 230 96 Core 929 | . 633 200 96 Parts 40 | . 10 30 . Protomatter Decayed 184 | . 44 6 134 Game ------ Seed NeutronParticleDoomcannon Manual? 0 Play Time 00:48:40 Cumulative 461.6 hours Start 2020.01.20 @ 04:55:22 End 2020.01.21 @ 00:54:13 Sessions 3 Manual Loads 0 Difficulty Rogue Special Mode Winter2019/RPGLIKE Game No. 137 Rogue 137 Adventurer 0 Explorer 0 Win Type - Total 1 Types 1/0/0/0/0/0/0 Lore% 69 Gallery% 76 Achievement% 51 Wizard Run 0 Options --------- ASCII 0 Keyboard 0 Movement Arrows Keybinds 0 Fullscreen 1 Font 12/Smallcaps Map View 83x54 Tactical HUD 1 Map Filters NONE Filters NONE Steam 1 RUN: 530aba5e-fb53-4ba0-b28c-af9099910a97